bitfinex/quotes_SOLUSD_20260228
["timestamp","ask_amount","ask_price","bid_price","bid_amount"]
[1772295768081,0.47389984,81.049,81.011,0.48844878]
[1772295768787,0.47389984,81.047,81.013,0.48844878]
[1772295769594,0.47389984,81.047,81.03,6.10732449]
[1772295769890,12.33836738,81.048,81.028,0.48844878]
[1772295771595,12.33775847,81.052,81.028,0.48844878]
[1772295771775,12.81165831,81.052,81.028,0.48844878]
[1772295771977,43.6560545,81.052,81.028,0.48844878]
[1772295772289,0.47389984,81.051,81.028,0.48844878]
[1772295774388,0.47389984,81.049,81.022,12.34223684]
[1772295774588,0.47389984,81.049,81.022,0.48844878]
[1772295774797,0.47389984,81.049,81.01,6.59577327]
[1772295775388,0.47389984,81.049,81.011,12.83245144]
[1772295775904,0.47389984,81.049,81.012,0.48844878]
[1772295776077,0.47389984,81.049,81.02,6.10732449]
[1772295776594,0.47389984,81.047,81.015,12.34339319]
[1772295777193,0.47389984,81.047,81.016,0.48844878]
[1772295778004,0.47389984,81.045,81.017,12.34308848]
[1772295778798,0.47389984,81.045,81.017,12.83153726]
[1772295779293,0.47389984,81.045,81.018,0.48844878]
[1772295780795,0.47389984,81.039,81.003,1.47271381]
[1772295781003,0.47389984,81.029,80.991,0.48844878]
[1772295781176,0.47389984,81.029,80.98,6.10732449]
[1772295781378,92.54232267,81.044,80.981,0.48844878]
[1772295781379,0.47389984,81.019,80.981,0.48844878]
[1772295782901,0.47389984,81.019,80.98,18.45601279]
[1772295782902,0.47389984,81.017,80.983,0.48844878]
[1772295783202,0.47389984,81.009,80.977,12.34918557]
[1772295783398,0.47389984,81.009,80.978,0.48844878]
[1772295784104,0.47389984,81.009,80.981,0.48844878]
[1772295784920,12.3444598,81.008,80.981,0.48844878]
[1772295785125,12.81835964,81.008,80.981,0.48844878]
[1772295785322,0.47389984,81.007,80.97,6.10732449]
[1772295785520,0.47389984,81.007,80.971,12.35010065]
[1772295786008,0.47389984,81.007,80.971,12.83854943]
[1772295786505,12.34476458,81.006,80.971,12.83854943]
[1772295786700,0.47389984,81.005,80.971,12.83854943]
[1772295787101,0.47389984,81.005,80.972,0.48844878]
[1772295788810,0.47389984,80.999,80.965,0.48844878]
[1772295790223,0.47389984,80.999,80.966,12.35086332]
[1772295790426,0.47389984,80.999,80.966,12.8393121]
[1772295791724,0.47389984,80.997,80.966,0.48844878]
[1772295791912,0.47389984,80.989,80.953,0.48844878]
[1772295793917,0.47389984,80.987,80.955,0.48844878]
[1772295795510,0.47389984,80.979,80.95,22.87218897]
[1772295795827,0.47389984,80.979,80.95,35.22546262]
[1772295796130,0.47389984,80.977,80.95,35.22546262]
[1772295796427,12.34723053,80.99,80.961,0.46203582]
[1772295796625,0.47498035,80.989,80.961,0.46203582]
[1772295797614,12.34750827,80.988,80.961,0.46203582]
[1772295797815,0.47498035,80.987,80.961,0.46203582]
[1772295799237,12.3478132,80.986,80.961,0.46203582]
[1772295799436,0.47498035,80.985,80.961,0.46203582]
[1772295800734,0.47498035,80.994,80.963,0.46203582]
[1772295801339,0.47498035,80.994,80.965,0.46203582]
[1772295802118,12.34674601,80.993,80.965,0.46203582]
[1772295802538,12.82172636,80.993,80.965,0.46203582]
[1772295803638,0.47498035,80.992,80.967,0.46203582]
[1772295804338,0.47498035,80.998,80.971,0.46203582]
[1772295805623,0.47498035,80.996,80.962,12.35147066]
[1772295805819,0.47498035,80.989,80.959,12.35193122]
[1772295807442,0.47498035,80.989,80.955,12.81452869]
[1772295807738,0.47498035,80.987,80.956,0.46203582]
[1772295809743,0.47498035,80.985,80.958,0.46203582]
[1772295811141,0.47498035,80.985,80.951,0.46203582]
[1772295811335,0.47498035,80.979,80.95,22.87218897]
[1772295811540,0.47498035,80.979,80.951,12.3531519]
[1772295811731,0.47498035,80.977,80.95,22.87218897]
[1772295812138,0.47498035,80.977,80.95,35.22544503]
[1772295812335,0.47498035,80.977,80.95,35.68748085]
[1772295812643,0.47498035,80.977,80.951,0.46203582]
[1772295814030,0.47498035,80.975,80.951,0.46203582]
[1772295815549,0.47498035,80.975,80.952,12.3529993]
[1772295816647,12.34964309,80.974,80.953,0.46203582]
[1772295816852,0.47498035,80.975,80.953,0.46203582]
[1772295818442,0.47498035,80.975,80.954,12.35269412]
[1772295818642,48.30849178,80.964,80.955,0.46203582]
[1772295818844,48.30849178,80.964,80.95,6.0975452]
[1772295819057,0.47498035,80.969,80.95,6.0975452]
[1772295819431,0.47498035,80.969,80.94,6.0975452]
[1772295820355,0.47498035,80.969,80.95,6.0975452]
[1772295820571,0.47498035,81.004,80.961,12.35162609]
[1772295820738,0.47498035,81.004,80.98,6.0975452]
[1772295822457,0.47498035,81.004,80.98,18.44616118]
[1772295824643,3.69383402,81.027,80.97,6.0975452]
[1772295824644,0.49100125,81.0,80.97,6.0975452]
[1772295824853,0.49100125,80.988,80.95,6.0975452]
[1772295825356,0.49100125,80.988,80.96,6.0975452]
[1772295827458,0.48127278,80.986,80.956,12.35224121]
[1772295827634,0.48127278,80.986,80.952,12.3529426]
[1772295829156,0.48127278,80.984,80.952,12.3529426]
[1772295833070,0.48127278,80.983,80.952,12.3529426]
[1772295837261,0.48127278,80.983,80.96,6.0975452]
[1772295838062,0.48127278,80.983,80.95,6.0975452]
[1772295839549,0.48127278,80.981,80.95,18.45079801]
[1772295841144,0.48127278,80.979,80.95,6.0975452]
[1772295841344,0.48127278,80.979,80.951,12.3531519]
[1772295842066,0.48127278,80.979,80.94,6.0975452]
[1772295842564,0.48127278,80.979,80.95,6.0975452]
[1772295843163,0.48127278,80.977,80.95,6.0975452]
[1772295843339,0.48127278,80.977,80.944,12.35409146]
[1772295844364,0.48127278,80.98,80.96,6.0975452]
[1772295844664,0.48127278,80.98,80.95,6.0975452]
[1772295846160,0.48127278,80.98,80.951,12.3531519]
[1772295846364,0.48127278,80.98,80.97,6.0975452]
[1772295847365,12.34580615,81.0,80.97,6.0975452]
[1772295847549,0.28432314,81.008,80.97,6.0975452]
[1772295848664,12.34461219,81.007,80.97,6.0975452]
[1772295848851,0.28432314,81.006,80.97,6.0975452]
[1772295849475,0.48127278,80.999,80.97,6.0975452]
[1772295849847,0.48127278,80.999,80.971,0.46110836]
[1772295850971,0.48127278,80.997,80.97,6.0975452]
[1772295854477,0.48127278,80.995,80.961,0.46110836]
[1772295854648,0.48127278,80.995,80.96,6.0975452]
[1772295854649,0.48127278,81.002,80.981,0.46110836]
[1772295855074,12.34263144,81.02,80.981,0.46110836]
[1772295855272,0.1,81.07,81.01,6.0975452]
[1772295855453,0.1,81.07,81.001,0.46110836]
[1772295855454,12.33714962,81.056,81.02,6.0975452]
[1772295855649,12.33714962,81.056,81.011,0.46110836]
[1772295855876,6.0975452,81.05,81.011,0.46110836]
[1772295856182,12.33714962,81.056,81.02,6.0975452]
[1772295856473,43.17842558,81.059,81.02,6.0975452]
[1772295857170,0.47588152,81.058,81.02,6.0975452]
[1772295857362,0.47588152,81.056,81.021,0.4913577]
[1772295857565,0.47588152,81.056,81.02,6.0975452]
[1772295857762,0.47588152,81.049,81.01,6.0975452]
[1772295858154,0.47588152,81.049,81.011,0.4913577]
[1772295858351,0.47588152,81.045,81.0,6.0975452]
[1772295858555,43.46381411,81.057,81.0,6.5889029]
[1772295858556,0.47588152,81.038,81.0,6.5889029]
[1772295859173,0.47588152,81.056,81.021,0.4913577]
[1772295859364,0.47588152,81.048,81.011,0.4913577]
[1772295860073,0.47588152,81.048,81.01,6.08729476]
[1772295860994,0.47588152,81.048,81.01,6.57865246]
[1772295861383,0.47588152,81.043,81.011,0.4913577]
[1772295861677,0.47588152,81.039,81.011,0.4913577]
[1772295862575,0.47588152,81.043,81.02,6.57865246]
[1772295862776,0.47588152,81.043,81.021,0.4913577]
[1772295863283,0.47588152,81.049,81.027,0.4913577]
[1772295863576,0.47588152,81.049,81.03,6.08729476]
[1772295864464,0.1,81.06,81.041,0.4913577]
[1772295864982,0.57588152,81.06,81.041,0.4913577]
[1772295865169,0.57588152,81.06,81.04,6.08729476]
[1772295865992,0.57588152,81.06,81.04,6.57865246]
[1772295867172,0.57588152,81.06,81.041,0.4913577]
[1772295867384,0.57588152,81.06,80.977,61.66186181]
[1772295867385,0.47588152,81.058,81.023,0.4913577]
[1772295868270,0.47588152,81.056,81.023,0.4913577]
[1772295869291,0.28432314,81.051,81.016,0.4913577]
[1772295869471,0.28432314,81.051,80.952,61.84280599]
[1772295869472,0.47588152,81.048,81.021,0.4913577]
[1772295870468,0.1,81.06,81.041,0.4913577]
[1772295870663,0.47588152,81.059,81.041,0.4913577]
[1772295870884,0.47588152,81.059,81.031,0.4913577]
[1772295873182,0.47588152,81.059,81.04,6.57865246]
[1772295873381,0.47588152,81.058,81.03,6.08729476]
[1772295874697,0.47588152,81.056,81.03,6.08729476]
[1772295874875,0.47588152,81.056,81.04,6.08729476]
[1772295876074,0.47588152,81.056,81.031,0.4913577]
[1772295878391,0.47588152,81.056,81.019,12.34267832]
[1772295878392,0.47588152,81.052,81.012,0.4913577]
[1772295878586,0.47588152,81.048,81.01,6.08729476]
[1772295878971,0.47588152,81.038,81.0,6.08729476]
[1772295879178,0.47588152,81.028,80.99,6.08729476]
[1772295879575,0.47588152,81.028,80.99,6.57865246]
[1772295879970,6.08729476,81.04,80.99,6.57865246]
[1772295879971,12.34156515,81.027,80.99,6.57865246]
[1772295880294,0.47588152,81.026,80.99,18.92582094]
[1772295880483,0.47588152,81.026,81.0,6.08729476]
[1772295881292,0.47588152,81.024,81.0,6.08729476]
[1772295881480,0.47588152,81.024,81.001,0.4913577]
[1772295881687,0.47588152,81.024,81.01,6.08729476]
[1772295882978,0.47588152,81.03,81.01,6.08729476]
[1772295883294,0.47588152,81.036,81.011,0.4913577]
[1772295883794,12.8161669,81.036,81.011,0.4913577]
[1772295884098,0.47588152,81.035,81.011,0.4913577]
[1772295884883,0.47588152,81.035,81.004,0.49058207]
[1772295885480,0.47588152,81.035,81.01,6.08729476]
[1772295886580,0.47588152,81.035,81.011,0.47108327]
[1772295887095,0.47588152,81.035,81.012,0.47108327]
[1772295887296,0.28432314,81.049,81.021,0.47108327]
[1772295887497,12.3372847,81.056,81.031,0.47108327]
[1772295888402,0.1,81.06,81.031,0.47108327]
[1772295889283,0.47547921,81.059,81.031,0.47108327]
[1772295890686,12.81220016,81.059,81.031,0.47108327]
[1772295890885,0.47547921,81.058,81.031,0.47108327]
[1772295892700,12.33699742,81.057,81.031,0.47108327]
[1772295892895,0.47547921,81.056,81.031,0.47108327]
[1772295893484,0.47547921,81.056,81.02,6.08729476]
[1772295893687,0.47547921,81.056,81.021,0.47108327]
[1772295896709,0.47547921,81.054,81.021,0.47108327]
[1772295901710,0.47547921,81.052,81.023,0.47108327]
[1772295903305,0.47547921,81.048,81.017,0.47108327]
[1772295903615,0.47547921,81.046,81.017,0.47108327]
[1772295903992,0.47547921,81.029,80.999,0.47108327]
[1772295904205,0.47547921,81.029,81.0,0.47108327]
[1772295904411,0.47547921,81.019,80.981,0.47108327]
[1772295904603,0.47547921,81.019,80.982,0.47108327]
[1772295904809,0.47547921,80.999,80.974,0.47108327]
[1772295905012,0.47547921,80.999,80.968,0.47108327]
[1772295905206,0.47547921,80.999,80.94,1.23548307]
[1772295905207,0.47547921,80.989,80.96,0.47108327]
[1772295905408,0.47547921,80.998,80.96,0.47108327]
[1772295905616,0.47547921,80.988,80.96,0.47108327]
[1772295907915,0.28432314,80.999,80.961,0.47108327]
[1772295909523,12.63015457,80.999,80.961,0.47108327]
[1772295909923,0.47547921,81.009,80.963,0.47108327]
[1772295910905,0.47547921,80.999,80.963,0.47108327]
[1772295912531,0.47547921,80.989,80.957,0.47108327]
[1772295913321,0.47547921,80.996,80.961,0.47108327]
[1772295914720,0.47547921,80.996,80.96,6.08729476]
[1772295914721,12.34598385,80.998,80.963,0.47108327]
[1772295915228,12.82146306,80.998,80.963,0.47108327]
[1772295915430,0.47547921,80.997,80.963,0.47108327]
[1772295915621,0.47547921,81.003,80.971,0.47108327]
[1772295916214,43.19654427,81.025,80.981,0.4628209]
[1772295916215,0.46809985,81.015,80.981,0.4628209]
[1772295916413,0.46809985,81.021,80.991,0.4628209]
[1772295916830,0.46809985,81.02,80.992,0.4628209]
[1772295917132,30.85152511,81.034,80.992,0.4628209]
[1772295917133,0.46809985,81.028,80.992,0.4628209]
[1772295917313,0.46809985,81.033,81.001,0.4628209]
[1772295918825,6.08729476,81.04,81.003,0.4628209]
[1772295919022,0.46809985,81.045,81.011,0.4628209]
[1772295920847,0.46809985,81.018,80.988,0.4628209]
[1772295921519,0.46809985,81.018,80.989,0.4628209]
[1772295923439,0.46809985,81.018,80.991,0.4628209]
[1772295924636,0.46809985,81.034,80.991,0.4628209]
[1772295925531,12.80875118,81.033,80.993,0.4628209]
[1772295925839,12.34065133,81.033,80.993,0.4628209]
[1772295926045,0.46809985,81.032,80.993,0.4628209]
[1772295927321,0.46809985,81.039,80.994,0.4628209]
[1772295927517,12.33867186,81.046,80.998,0.4628209]
[1772295927722,20.11858156,81.054,81.0,0.4628209]
[1772295928023,0.46809985,81.053,81.002,0.4628209]
[1772295928228,0.46809985,81.053,81.004,0.4628209]
[1772295928429,0.46809985,81.053,81.006,0.4628209]
[1772295928629,0.46809985,81.053,81.008,0.4628209]
[1772295929626,12.33775847,81.052,81.01,0.4628209]
[1772295929944,12.80585832,81.052,81.011,0.4628209]
[1772295930444,12.80585832,81.052,81.013,0.4628209]
[1772295931627,0.46809985,81.039,81.008,0.4628209]
[1772295933447,12.33988992,81.038,81.009,12.34430742]
[1772295933652,12.80798977,81.038,81.01,0.4628209]
[1772295933862,0.46809985,81.037,81.01,0.4628209]
[1772295934349,0.46809985,81.058,81.011,1.23440026]
[1772295934529,0.46809985,81.058,81.012,0.4628209]
[1772295934734,0.46809985,81.049,81.012,0.4628209]
[1772295935630,0.46809985,81.039,81.006,0.4628209]
[1772295936854,0.46809985,81.019,80.978,0.4628209]
[1772295937059,0.46809985,81.009,80.978,0.4628209]
[1772295937642,0.46809985,81.007,80.978,0.4628209]
[1772295938550,0.46809985,81.007,80.978,12.81182732]
[1772295938749,6.09263021,81.05,80.983,0.4628209]
[1772295938941,6.09263021,81.04,80.985,0.4628209]
[1772295939144,0.28432314,81.039,80.985,0.4628209]
[1772295939352,0.28432314,81.039,80.987,0.4628209]
[1772295939939,43.18961474,81.038,80.989,0.4628209]
[1772295942359,43.18961474,81.038,80.991,0.4628209]
[1772295942664,0.28432314,81.029,80.991,0.4628209]
[1772295943580,0.46809985,81.028,80.991,0.4628209]
[1772295944954,12.34156515,81.027,80.993,0.45567772]
[1772295945152,30.84972482,81.038,80.993,0.45567772]
[1772295945153,12.34100535,81.031,80.993,0.45567772]
[1772295945763,12.82600514,81.031,80.993,0.45567772]
[1772295945967,0.48499979,81.03,80.993,0.45567772]
[1772295946149,12.34100535,81.031,80.993,0.45567772]
[1772295946348,12.8345381,81.031,80.993,0.45567772]
[1772295946767,0.49353275,81.03,80.993,0.45567772]
[1772295947983,0.49353275,81.028,80.995,0.45377672]
[1772295949669,12.34156515,81.027,80.996,12.3462887]
[1772295949979,12.34156515,81.027,80.997,0.45377672]
[1772295950149,12.34108774,81.031,80.997,0.45377672]
[1772295950471,0.49353275,81.044,80.999,0.45377672]
[1772295950667,0.49353275,81.044,81.001,0.45377672]
[1772295950966,0.49353275,81.044,81.003,0.45377672]
[1772295952268,0.49353275,81.042,81.005,0.45377672]
[1772295954983,43.18801593,81.041,81.006,12.34476458]
[1772295955281,0.49353275,81.04,81.007,0.45377672]
[1772295956058,16.80765815,81.04,81.007,0.45377672]
[1772295956253,0.49353275,81.039,81.007,0.45377672]
[1772295957179,0.49353275,81.037,81.007,0.45377672]
[1772295957874,0.49353275,81.037,81.008,0.45377672]
[1772295959258,12.34019448,81.036,81.01,0.45377672]
[1772295959860,12.83372723,81.036,81.01,0.45377672]
[1772295960975,12.83372723,81.036,81.012,0.45377672]
[1772295961672,0.49353275,81.029,80.982,1.23484231]
[1772295961874,0.49353275,81.029,80.983,12.34827062]
[1772295962764,0.49353275,81.029,80.984,1.23481181]
[1772295962963,0.49353275,81.035,80.985,12.34796567]
[1772295963164,0.49353275,81.035,80.986,1.23478132]
[1772295963664,0.49353275,81.035,80.987,0.45377672]
[1772295963865,0.49353275,81.035,80.989,0.45377672]
[1772295964065,30.8504862,81.036,80.993,0.45377672]
[1772295964066,12.83403179,81.034,80.993,0.45377672]
[1772295964260,12.83403179,81.034,80.994,0.45377672]
[1772295964466,0.49353275,81.029,80.994,0.45377672]
[1772295966785,0.49353275,81.027,80.996,0.45377672]
[1772295969672,31.34478037,81.034,80.998,0.45377672]
[1772295969894,12.33973765,81.039,81.0,0.45377672]
[1772295970088,12.33973765,81.039,80.997,43.21147696]
[1772295970089,12.33973765,81.039,81.002,0.45377672]
[1772295970310,12.33908956,81.044,81.004,0.45377672]
[1772295970609,12.33908956,81.044,81.006,0.45377672]
[1772295970904,12.33908956,81.044,81.008,0.45377672]
[1772295971210,12.33908956,81.044,81.01,0.45377672]
[1772295971411,12.33908956,81.044,81.013,0.45377672]
[1772295971708,12.33908956,81.044,81.015,0.45377672]
[1772295972284,0.49353275,81.043,81.015,0.45377672]
[1772295973198,12.83281361,81.042,81.017,0.45377672]
[1772295974714,12.83281361,81.042,81.019,0.45377672]
[1772295976010,0.49353275,81.048,81.02,12.34263144]
[1772295976306,0.49353275,81.048,81.019,0.45377672]
[1772295976692,6.08870839,81.04,81.01,0.46538549]
[1772295976898,0.49067244,81.029,80.991,0.46538549]
[1772295977098,0.49067244,81.019,80.991,0.46538549]
[1772295978110,0.49067244,81.017,80.992,0.46538549]
[1772295980309,0.49067244,81.009,80.978,0.46538549]
[1772295980521,0.49067244,81.009,80.978,12.81441856]
[1772295980813,0.49067244,81.009,80.979,0.46538549]
[1772295981394,49.35786997,81.041,80.979,0.46538549]
[1772295981395,6.09369951,81.02,80.979,0.46538549]
[1772295981605,0.49067244,81.018,80.979,0.46538549]
[1772295982512,0.49067244,81.016,80.981,0.46538549]
[1772295985309,0.49067244,81.014,80.983,0.46538549]
[1772295986220,6.09369951,81.04,80.983,0.46538549]
[1772295986221,12.3484231,81.074,80.983,0.46538549]
[1772295986411,0.49067244,81.056,80.993,0.46538549]
[1772295986617,0.49067244,81.039,80.995,0.46538549]
[1772295987118,43.17949097,81.057,80.995,0.46538549]
[1772295987119,0.49067244,81.029,80.995,0.46538549]
[1772295987419,0.49067244,81.029,80.997,0.46538549]
[1772295988694,0.49067244,81.019,80.997,0.46538549]
[1772295993522,12.83360857,81.018,80.997,0.46538549]
[1772295993708,12.83360857,81.018,80.998,12.34598385]
[1772295993907,0.49067244,81.017,80.998,12.34598385]
[1772295994623,0.49067244,81.009,80.989,0.46538549]
[1772295994821,0.49067244,81.009,80.979,0.46538549]
[1772295995001,0.49067244,81.009,80.95,1.23533045]
[1772295995002,0.49067244,80.999,80.974,0.46538549]
[1772295995319,0.49067244,80.989,80.966,0.46538549]
[1772295995620,12.83809956,80.989,80.966,12.81616755]
[1772295995923,0.49067244,80.988,80.967,0.46538549]
[1772295996117,12.34682706,80.993,80.967,0.46538549]
[1772295996520,6.58437195,80.99,80.967,0.46538549]
[1772295997221,6.58437195,80.99,80.969,0.46538549]
[1772295998912,6.58437195,80.99,80.97,12.35025318]
[1772295999114,6.58437195,80.99,80.971,0.46538549]
[1772296001107,18.4409455,80.99,80.971,0.46538549]
[1772296001308,0.49067244,80.989,80.959,0.46538549]
[1772296002530,0.49067244,80.989,80.96,0.46538549]
[1772296003508,0.49067244,80.987,80.96,0.46538549]
[1772296004725,0.49067244,80.987,80.94,1.23548307]
[1772296004726,0.49067244,80.987,80.962,0.48301217]
[1772296006317,12.3478132,80.986,80.962,0.48301217]
[1772296006728,0.4946935,80.983,80.957,0.45389928]
[1772296006935,0.4946935,80.979,80.957,0.45389928]
[1772296009347,12.84372657,80.978,80.957,0.45389928]
[1772296010529,12.34933807,80.976,80.957,0.45389928]
[1772296014045,0.4946935,80.976,80.957,0.45389928]
[1772296014626,0.4946935,80.976,80.95,0.45389928]
[1772296014924,0.4946935,80.959,80.933,0.45389928]
[1772296015133,0.4946935,80.949,80.93,0.2]
[1772296016120,0.4946935,80.947,80.93,0.2]
[1772296017041,0.4946935,80.939,80.917,0.45389928]
[1772296018235,0.4946935,80.939,80.918,0.45389928]
[1772296018542,0.4946935,80.998,80.937,0.28432314]
[1772296018748,6.09369951,81.04,80.97,0.14216157]
[1772296018931,6.09369951,81.05,80.98,0.45389928]
[1772296019250,6.09369951,81.05,80.99,0.45389928]
[1772296019448,6.09369951,81.04,80.99,0.45389928]
[1772296020241,6.09369951,81.04,80.974,3.69383402]
[1772296020242,12.33973765,81.039,80.992,0.45389928]
[1772296020644,0.4946935,81.038,80.992,0.45389928]
[1772296021436,0.4946935,81.036,80.994,0.45389928]
[1772296022137,6.09369951,81.03,80.994,0.45389928]
[1772296022335,0.4946935,81.036,80.994,0.45389928]
[1772296022534,12.3400422,81.037,80.994,0.45389928]
[1772296022932,57.24249762,81.064,81.0,0.45389928]
[1772296022933,0.4946935,81.044,81.0,0.45389928]
[1772296023230,0.4946935,81.043,81.0,0.45389928]
[1772296023446,6.09369951,81.04,81.001,12.34552659]
[1772296023638,6.09369951,81.04,81.002,0.45389928]
[1772296023834,12.83443115,81.039,81.002,0.45389928]
[1772296025457,0.4946935,81.038,81.004,0.45389928]
[1772296026961,12.3400422,81.037,81.006,0.45389928]
[1772296027461,0.4946935,81.029,80.999,0.45389928]
[1772296029341,0.4946935,81.027,80.999,0.45389928]
[1772296029542,0.4946935,81.019,80.984,0.45389928]
[1772296029842,0.4946935,81.009,80.984,0.45389928]
[1772296034638,0.4946935,81.009,80.986,0.45389928]
[1772296034845,0.4946935,81.016,80.986,0.45389928]
[1772296038365,0.48881569,81.014,80.986,0.45389928]
[1772296039563,43.20187618,81.015,80.986,0.45389928]
[1772296039564,0.48881569,81.012,80.986,0.45389928]
[1772296042869,30.85848299,81.015,80.988,0.4731745]
[1772296042870,12.83281835,81.011,80.988,0.4731745]
[1772296043186,6.09216154,81.03,80.988,0.4731745]
[1772296043473,0.48881569,81.028,80.988,0.4731745]
[1772296044972,0.48881569,81.026,80.99,0.4731745]
[1772296048172,12.34186979,81.025,80.991,12.3470509]
[1772296048368,0.48881569,81.024,80.992,0.4731745]
[1772296048696,0.48881569,81.019,80.991,12.3470509]
[1772296049188,0.48881569,81.019,80.992,0.4731745]
[1772296050372,12.34293613,81.018,80.994,0.4731745]
[1772296051087,0.48881569,81.017,80.994,0.4731745]
[1772296052992,0.48881569,81.017,80.996,0.4731745]
[1772296053293,12.83110953,81.023,80.996,0.4731745]
[1772296053784,12.83110953,81.023,80.995,12.34644113]
[1772296053785,0.48881569,81.04,80.998,0.4731745]
[1772296053984,12.33943312,81.041,81.0,0.4731745]
[1772296054173,12.33943312,81.041,81.002,0.4731745]
[1772296054379,12.33943312,81.041,81.004,0.4731745]
[1772296054583,12.33943312,81.041,81.006,0.4731745]
[1772296054779,12.33943312,81.041,81.008,0.4731745]
[1772296055595,0.48881569,81.052,81.011,0.4731745]
[1772296055796,0.48881569,81.049,81.013,0.4731745]
[1772296055989,0.48881569,81.049,81.015,0.4731745]
[1772296056199,0.48881569,81.049,81.017,0.4731745]
[1772296056674,0.48881569,81.049,81.019,0.4731745]
[1772296057189,12.33823406,81.049,81.02,12.34263144]
[1772296057495,6.09216154,81.04,81.021,0.4731745]
[1772296059595,0.48881569,81.048,81.023,0.4731745]
[1772296059806,6.68097723,81.06,81.025,0.4731745]
[1772296060293,0.48881569,81.059,81.025,0.4731745]
[1772296060479,6.09216154,81.05,81.027,0.4731745]
[1772296061487,6.09216154,81.05,81.029,0.4731745]
[1772296062899,0.48881569,81.054,81.029,0.4731745]
[1772296063195,6.09216154,81.05,81.029,0.4731745]
[1772296063575,0.48881569,81.039,80.977,12.34918557]
[1772296063774,0.48881569,81.039,80.978,0.4731745]
[1772296063775,6.09216154,81.0,80.978,0.4731745]
[1772296065182,0.49673473,80.999,80.978,0.4731745]
[1772296065383,6.09216154,81.0,80.978,0.4731745]
[1772296065603,6.09216154,81.0,80.98,0.47770742]
[1772296066097,6.09216154,81.01,80.98,0.47770742]
[1772296066302,6.09216154,81.02,80.99,0.47519018]
[1772296066798,0.45009648,81.019,80.991,0.47519018]
[1772296067786,0.45009648,81.019,80.993,0.47519018]
[1772296068202,0.45009648,81.037,80.997,0.47519018]
[1772296068403,6.09216154,81.04,81.001,0.47519018]
[1772296068591,6.09216154,81.04,81.01,0.47519018]
[1772296068790,6.09216154,81.04,81.002,1.37669898]
[1772296068791,6.09216154,81.04,81.012,0.47519018]
[1772296068986,6.54225802,81.04,81.014,0.47519018]
[1772296069197,0.45009648,81.039,81.015,0.47519018]
[1772296070089,0.45009648,81.029,80.997,0.47519018]
[1772296070401,6.09216154,81.02,80.997,0.47519018]
[1772296071005,0.45009648,81.022,80.997,0.47519018]
[1772296071212,0.45009648,81.022,80.997,12.82132645]
[1772296071410,0.45009648,81.022,80.998,0.47519018]
[1772296071895,6.09216154,81.02,80.998,0.47519018]
[1772296072895,0.45009648,81.018,80.991,0.47519018]
[1772296073101,0.45009648,81.018,80.993,0.47519018]
[1772296073385,0.45009648,81.025,80.993,0.47519018]
[1772296074100,6.09216154,81.02,80.993,0.47519018]
[1772296074295,6.54225802,81.02,80.993,0.47519018]
[1772296074702,0.45009648,81.02,80.993,0.47519018]
[1772296075307,0.45009648,81.02,80.996,0.47519018]
[1772296075803,30.85033214,81.037,80.995,12.34644113]
[1772296075804,6.09216154,81.04,81.0,0.47519018]
[1772296075995,6.54225802,81.04,81.002,0.47519018]
[1772296076306,0.45009648,81.039,81.004,0.47519018]
[1772296076508,0.45009648,81.039,81.006,0.47519018]
[1772296076704,0.45009648,81.038,81.008,0.47519018]
[1772296077885,0.45009648,81.046,81.01,0.47519018]
[1772296078208,12.33852525,81.047,81.009,44.43950671]
[1772296078209,0.45009648,81.05,81.012,0.47519018]
[1772296078383,0.45009648,81.049,81.014,0.47519018]
[1772296078587,0.45009648,81.049,81.016,0.47519018]
[1772296078988,0.45009648,81.049,81.018,0.47519018]
[1772296079188,0.45009648,81.049,81.02,0.47519018]
[1772296081214,0.45009648,81.048,81.022,0.47519018]
[1772296082112,12.28843562,81.049,81.022,0.47519018]
[1772296082725,1.23427837,81.055,81.024,0.47519018]
[1772296083022,1.23427837,81.069,81.026,0.47519018]
[1772296083395,12.33532343,81.068,81.029,0.47519018]
[1772296083599,6.19216154,81.06,81.029,0.47519018]
[1772296083809,0.1,81.06,81.029,0.47519018]
[1772296084209,0.55009648,81.06,81.029,0.47519018]
[1772296085911,12.33669302,81.059,81.031,0.47519018]
[1772296087203,0.1,81.06,81.034,0.47519018]
[1772296087598,1.23427837,81.065,81.034,0.47519018]
[1772296087804,0.1,81.07,81.04,0.47519018]
[1772296088026,0.1,81.07,81.042,0.47519018]
[1772296088423,0.52119837,81.078,81.042,0.28432314]
[1772296088624,0.52119837,81.078,81.044,0.28432314]
[1772296088923,0.5,81.077,81.045,1.23388241]
[1772296089121,0.5,81.069,81.043,0.6]
[1772296089505,0.52119837,81.078,81.043,12.93904706]
[1772296089720,12.33395414,81.077,81.043,43.78686858]
[1772296090224,0.5,81.076,81.043,43.78686858]
[1772296091327,0.5,81.074,81.043,43.78686858]
[1772296093227,0.5,81.074,81.044,0.6]
[1772296094911,0.5,81.069,81.044,12.33897635]
[1772296096433,6.09216154,81.07,81.035,0.6]
[1772296096434,0.5,81.067,81.036,12.34019448]
[1772296097618,0.5,81.065,81.037,0.28432314]
[1772296097825,0.5,81.065,81.037,1.51832736]
[1772296098024,0.5,81.077,81.037,1.51832736]